bitfinex/quotes_ETHUSD_20250214
["timestamp","ask_amount","ask_price","bid_price","bid_amount"]
[1739502578168,6.101,2698.5,2698.2,3.70612]
[1739502578585,6.101,2698.5,2698.3,0.15607297]
[1739502578858,6.101,2698.5,2698.1,3.70631]
[1739502579093,6.101,2698.5,2698.2,0.15607297]
[1739502579300,5.32,2698.5,2698.2,0.15607297]
[1739502579602,5.32,2698.5,2698.3,3.7059]
[1739502579954,5.32,2698.5,2698.4,0.15607297]
[1739502580502,5.32,2698.5,2697.9,3.70647]
[1739502580660,5.32,2698.5,2698.4,0.15607297]
[1739502580857,5.32,2698.5,2697.9,3.70647]
[1739502581201,0.7944,2698.4,2698.0,0.60719997]
[1739502581355,4.50032,2698.4,2698.0,0.15607297]
[1739502581704,4.50032,2698.4,2697.7,6.70681]
[1739502581705,3.70604,2698.3,2697.7,6.70681]
[1739502581905,3.70604,2698.3,2698.1,0.15697034]
[1739502582213,3.70634,2698.1,2697.5,3.9567]
[1739502583178,3.45674,2698.1,2697.5,3.7071]
[1739502584110,3.45674,2698.1,2697.5,4.531237]
[1739502585008,0.8181,2698.0,2697.3,3.70737]
[1739502585363,0.8181,2698.0,2697.5,3.70703]
[1739502587561,0.8181,2698.0,2697.3,3.70736]
[1739502587919,0.8181,2698.0,2697.4,3.70724]
[1739502588061,0.8181,2698.0,2697.5,3.70713]
[1739502590431,4.5246,2698.0,2697.5,3.70713]
[1739502590576,0.8181,2698.0,2697.5,3.70713]
[1739502590990,0.7845,2697.9,2697.4,4.52666]
[1739502592128,2.226,2697.8,2697.4,4.52666]
[1739502592285,0.7845,2697.9,2697.4,4.52666]
[1739502592716,0.7845,2697.9,2697.5,3.70704]
[1739502593120,0.7845,2697.9,2697.5,7.41408]
[1739502593278,0.7845,2697.9,2697.5,3.70704]
[1739502593483,0.7845,2697.9,2697.7,3.70685]
[1739502593713,0.7845,2697.9,2697.5,4.159684]
[1739502594010,0.7845,2697.9,2697.5,7.866684]
[1739502594412,0.7845,2697.9,2697.6,3.70696]
[1739502594661,0.7845,2697.9,2697.7,0.15840359]
[1739502595314,0.7845,2697.9,2697.5,4.159644]
[1739502595315,0.7845,2697.9,2697.5,3.707]
[1739502595522,0.7845,2697.9,2697.8,0.15835076]
[1739502595738,0.7845,2697.9,2697.5,7.41406]
[1739502596065,0.8283,2698.1,2697.7,3.70684]
[1739502596264,0.8283,2698.1,2697.8,0.15832812]
[1739502596419,0.8283,2698.1,2697.6,3.7069]
[1739502596764,0.8283,2698.1,2697.7,0.15832812]
[1739502596765,4.53463,2698.1,2697.7,0.15832812]
[1739502597110,4.53463,2698.1,2697.5,3.707]
[1739502597403,8.24102,2698.1,2697.8,0.15832812]
[1739502597522,9.55587008,2698.1,2697.5,3.707]
[1739502597722,9.55587008,2698.1,2697.9,0.15837339]
[1739502597924,3.70645,2698.0,2697.5,3.707]
[1739502598159,3.70645,2698.0,2697.5,3.9566]
[1739502598383,3.70645,2698.0,2697.6,0.1583432]
[1739502598668,0.7832,2698.0,2697.6,0.1583432]
[1739502598862,4.48966,2698.0,2697.6,0.1583432]
[1739502599463,0.7832,2698.0,2697.6,0.1583432]
[1739502599615,0.7832,2698.0,2697.6,3.8652032]
[1739502600064,0.7832,2698.0,2697.6,0.1583432]
[1739502600269,5.32,2698.2,2697.9,3.70658]
[1739502600418,5.32,2698.2,2698.0,3.70636]
[1739502600621,5.32,2698.2,2698.1,0.15838848]
[1739502601060,5.32,2698.2,2697.7,4.47201]
[1739502601371,5.32,2698.2,2697.8,0.15838848]
[1739502601563,5.32,2698.2,2697.8,0.66257396]
[1739502601864,5.32,2698.2,2697.9,0.15838848]
[1739502602267,5.32,2698.2,2697.9,3.86487848]
[1739502602764,3.70596,2698.4,2697.9,3.86487848]
[1739502602925,4.47417,2698.5,2697.9,3.86487848]
[1739502603128,4.47417,2698.5,2698.0,3.70643]
[1739502603327,0.7683,2698.5,2698.1,3.70629]
[1739502603691,0.7683,2698.5,2698.1,3.86459848]
[1739502604567,0.7683,2698.5,2698.2,3.70616]
[1739502605066,0.7683,2698.5,2698.3,0.15838848]
[1739502605251,0.7683,2698.5,2698.2,3.70616]
[1739502605423,0.7683,2698.5,2698.3,0.15838848]
[1739502605619,0.7683,2698.5,2698.1,3.70621]
[1739502605827,5.32,2698.9,2698.5,3.70574]
[1739502606019,10.11289,2699.0,2698.4,3.70577]
[1739502606216,10.11289,2699.0,2698.4,7.41158]
[1739502606522,6.4078,2699.0,2698.5,0.15838848]
[1739502606729,10.1129,2699.0,2698.5,0.15838848]
[1739502607063,3.70523,2698.9,2698.6,0.15838848]
[1739502607369,6.86534447,2698.9,2698.3,3.70602]
[1739502607555,6.86534447,2698.9,2698.7,0.15838848]
[1739502607865,3.16011447,2698.9,2698.8,0.15838848]
[1739502608022,3.16011447,2698.9,2698.5,3.70573]
[1739502608223,3.16011447,2698.9,2698.6,0.15838848]
[1739502609723,3.16011447,2698.9,2698.5,3.70574]
[1739502609943,3.16011447,2698.9,2698.7,0.15838848]
[1739502610229,3.16011447,2698.9,2698.5,3.70568]
[1739502610428,3.16011447,2698.9,2698.6,0.15838848]
[1739502611571,9.8409,2699.0,2698.6,0.15838848]
[1739502611724,0.8158,2699.0,2698.7,3.70539]
[1739502612257,0.8158,2699.0,2698.8,0.15782266]
[1739502612450,0.8158,2699.0,2698.7,7.41078]
[1739502612627,3.94231447,2699.2,2698.8,0.15782266]
[1739502612832,3.94231447,2699.2,2698.7,3.70539]
[1739502613034,3.94231447,2699.2,2698.8,0.15782266]
[1739502613264,3.94231447,2699.2,2698.7,3.70539]
[1739502613468,3.94231447,2699.2,2698.8,0.15782266]
[1739502613628,3.94231447,2699.2,2698.7,4.56604068]
[1739502613830,3.94231447,2699.2,2698.8,0.15782266]
[1739502614027,3.94231447,2699.2,2698.7,3.70538]
[1739502614384,0.8267,2699.4,2699.0,0.7524]
[1739502614532,0.8267,2699.4,2699.0,1.21394327]
[1739502614978,4.53124,2699.4,2699.1,0.15782266]
[1739502615464,4.53124,2699.4,2698.9,3.70519]
[1739502615669,4.53124,2699.4,2699.0,0.15782266]
[1739502616032,0.8267,2699.4,2699.0,0.15782266]
[1739502616283,0.8267,2699.4,2698.7,3.8232]
[1739502616554,0.7511,2699.6,2699.1,3.70483]
[1739502617063,0.7511,2699.6,2699.2,0.15782266]
[1739502618034,0.7511,2699.6,2699.2,3.86260266]
[1739502618552,0.7511,2699.6,2699.3,3.70464]
[1739502618768,3.43211447,2699.8,2699.4,3.70451]
[1739502619067,0.8034,2699.9,2699.5,3.86217266]
[1739502620387,3.92131447,2700.1,2699.5,3.86211266]
[1739502620540,0.7612,2700.1,2699.9,3.70382]
[1739502620740,5.32,2700.3,2700.0,3.70368]
[1739502621051,1.0332,2700.4,2700.1,0.15531172]
[1739502621658,1.0332,2700.4,2699.8,3.70397]
[1739502621856,0.7612,2700.4,2699.9,0.52548269]
[1739502622374,0.7612,2700.4,2699.9,0.15508569]
[1739502622579,0.7612,2700.4,2699.9,3.85892569]
[1739502622889,4.46438,2700.4,2699.9,0.15508569]
[1739502623447,3.70343,2700.2,2699.9,0.15508569]
[1739502623642,3.70343,2700.2,2699.6,4.52336]
[1739502623991,3.70343,2700.2,2699.7,0.15508569]
[1739502624149,7.62449447,2700.4,2699.7,0.15508569]
[1739502624348,7.62449447,2700.4,2699.8,3.70384]
[1739502624542,3.70334,2700.3,2699.7,0.15508569]
[1739502624774,3.70343,2700.2,2699.6,5.26033793]
[1739502625088,3.70329,2700.3,2699.7,3.70411]
[1739502625411,3.70346,2700.2,2699.8,0.15508569]
[1739502625687,0.7948,2700.1,2699.6,3.70424]
[1739502625996,0.7948,2700.1,2699.7,3.85910829]
[1739502626194,0.7948,2700.1,2699.8,3.70394]
[1739502626690,0.7948,2700.1,2699.9,0.15510829]
[1739502626896,3.7037,2700.0,2699.9,0.15510829]
[1739502627038,1.93101645,2700.0,2699.1,3.70491]
[1739502627242,1.93101645,2700.0,2699.2,3.70467]
[1739502627243,3.16011447,2699.8,2699.2,3.70467]
[1739502627591,3.16011447,2699.8,2699.3,3.70461]
[1739502627992,4.77064,2699.9,2699.4,0.14959914]
[1739502627993,1.0668,2699.9,2699.4,0.14959914]
[1739502628167,1.0668,2699.9,2699.4,3.85409914]
[1739502628368,4.77064,2699.9,2699.4,0.14959914]
[1739502628580,0.7948,2699.5,2699.4,0.14959914]
[1739502628813,0.7948,2699.5,2699.1,3.70483]
[1739502628981,0.7948,2699.5,2699.4,0.14990808]
[1739502629196,0.7948,2699.5,2699.3,3.70461]
[1739502629493,0.7948,2699.5,2699.4,0.14990808]
[1739502630317,0.7948,2699.8,2699.4,3.85443562]
[1739502630464,0.7948,2699.8,2699.3,3.70463]
[1739502630664,0.7948,2699.8,2699.4,0.14997591]
[1739502631512,0.7948,2699.8,2699.5,3.7043]
[1739502631682,6.3868,2700.0,2699.6,3.70424]
[1739502631886,6.3868,2700.0,2699.7,0.14997591]
[1739502632609,10.09051,2700.0,2699.7,0.23275881]
[1739502632764,7.65168447,2699.8,2699.7,0.23275881]
[1739502632965,7.65168447,2699.8,2698.9,1.49744552]
[1739502632966,3.7045,2699.5,2698.9,5.20263552]
[1739502633163,0.7876,2699.4,2699.1,3.70493]
[1739502633366,0.7876,2699.4,2699.0,0.23275884]
[1739502633567,0.7876,2699.4,2698.9,4.47599]
[1739502633869,0.7876,2699.4,2699.0,3.70505]
[1739502634074,0.7876,2699.4,2699.1,0.23276638]
[1739502635745,6.1076,2699.6,2699.2,3.7048]
[1739502636309,6.1076,2699.6,2699.3,0.23276638]
[1739502636509,6.1076,2699.6,2699.2,3.7048]
[1739502636861,6.1076,2699.6,2699.3,0.23276638]
[1739502637153,5.32,2699.6,2699.4,3.70445]
[1739502637304,5.32,2699.6,2699.4,3.93721638]
[1739502638355,6.1127,2699.9,2699.4,3.70445]
[1739502639066,12.04256,2699.9,2699.3,4.46688]
[1739502639238,3.70416,2699.7,2699.3,0.7623]
[1739502639437,3.70416,2699.7,2699.1,3.70485]
[1739502639438,3.70416,2699.7,2699.1,4.46715]
[1739502639610,3.70416,2699.7,2699.4,0.23291711]
[1739502639812,3.70416,2699.7,2699.1,8.989237]
[1739502640039,3.70416,2699.7,2699.5,0.2328342]
[1739502640249,12.04266,2699.9,2699.1,5.284377]
[1739502640578,12.04266,2699.9,2699.3,3.70464]
[1739502641267,3.70412,2699.7,2699.4,0.2328342]
[1739502641420,3.70406,2699.8,2699.4,0.2328342]
[1739502641622,8.3387,2699.9,2699.1,1.579527]
[1739502641942,4.49064,2699.5,2699.0,3.70505]
[1739502642344,2.226,2699.4,2699.2,3.70478]
[1739502642515,0.7862,2699.5,2699.2,3.70478]
[1739502642717,0.7862,2699.5,2699.1,3.70482]
[1739502642918,0.7862,2699.5,2699.1,4.527548]
[1739502643351,4.49067,2699.5,2699.1,0.822728]
[1739502643531,8.19516,2699.5,2699.1,0.822728]
[1739502643740,4.49067,2699.5,2698.9,4.52242]
[1739502644066,4.49067,2699.5,2699.0,3.70505]
[1739502644561,4.49067,2699.5,2698.9,0.8173]
[1739502644861,4.49067,2699.5,2698.8,3.70533]
[1739502644862,3.70469,2699.3,2698.8,3.70533]
[1739502645362,4.49067,2699.5,2698.9,3.70512]
[1739502645657,0.7862,2699.5,2699.1,3.70489]
[1739502645963,3.70457,2699.4,2699.0,0.370512]
[1739502646136,3.70457,2699.4,2698.8,3.70523]
[1739502646463,3.70488,2699.2,2698.6,5.25998083]
[1739502646665,3.70488,2699.2,2698.6,4.52284]
[1739502646817,0.7703,2699.3,2698.6,0.8173]
[1739502647023,0.7703,2699.3,2698.9,3.70516]
[1739502647345,0.7703,2699.3,2698.6,0.8173]
[1739502647346,0.7703,2699.3,2699.0,3.70495]
[1739502647547,0.7703,2699.3,2699.1,3.70492]
[1739502647716,3.16011447,2699.5,2699.0,4.075445]
[1739502647717,0.7703,2699.5,2699.2,3.70468]
[1739502647922,1.0423,2699.7,2699.2,3.70468]
[1739502649336,0.7703,2699.7,2699.2,3.70468]
[1739502649536,0.7703,2699.7,2699.3,0.370468]
[1739502650125,8.48011447,2699.8,2699.3,0.370468]
[1739502650485,5.32,2699.8,2699.6,3.70421]
[1739502650646,0.7876,2699.9,2699.5,0.8271]
[1739502650823,0.7876,2699.9,2699.5,4.53147]
[1739502651024,3.95181447,2700.1,2699.5,1.280247]
[1739502651224,3.70385,2699.9,2699.3,0.8271]
[1739502651473,3.70385,2699.9,2699.3,4.53172]
[1739502651623,3.70403,2699.8,2699.3,0.8271]
[1739502651822,3.70385,2699.9,2699.3,0.8271]
[1739502652184,3.70385,2699.9,2699.3,4.53174]
[1739502652327,7.65542447,2700.1,2699.4,4.528061]
[1739502652520,7.65542447,2700.1,2699.4,4.528051]
[1739502652722,3.70379,2700.0,2699.4,4.528051]
[1739502654821,3.70379,2700.0,2699.5,0.23293216]
[1739502655025,3.95181447,2700.1,2699.5,0.23293216]
[1739502655268,7.65539447,2700.1,2699.6,3.70414]
[1739502655568,7.65539447,2700.1,2699.4,3.70441]
[1739502655878,7.65539447,2700.1,2699.7,0.23293216]
[1739502656022,7.65539447,2700.1,2699.5,0.453151]
[1739502656222,3.95181447,2700.1,2699.8,0.23293216]
[1739502656418,0.7917,2700.1,2699.8,3.70388]
[1739502656638,5.592,2700.2,2699.8,3.70388]
[1739502656866,5.592,2700.2,2699.9,0.23293216]
[1739502657167,9.29544,2700.2,2699.9,0.23293216]
[1739502657687,9.29544,2700.2,2699.6,4.53135]
[1739502657872,9.29544,2700.2,2700.0,0.23293216]
[1739502658065,9.29544,2700.2,2699.6,4.53135]
[1739502658381,3.7038,2700.0,2699.6,0.8271]
[1739502658600,3.70393,2699.9,2699.7,0.23263074]
[1739502658740,7.65578447,2699.8,2699.7,0.23263074]
[1739502658940,3.70433,2699.6,2699.1,3.70493]
[1739502659178,3.70433,2699.6,2699.2,0.23249509]
[1739502659562,4.45544,2699.4,2699.0,0.8271]
[1739502659762,4.45544,2699.4,2699.3,0.23251016]
[1739502659959,0.7509,2699.4,2698.8,0.7778]
[1739502660173,0.7509,2699.4,2699.0,3.70505]
[1739502660376,8.16008,2699.4,2698.9,0.23251016]
[1739502660607,8.16008,2699.4,2698.3,5.25]
[1739502660608,3.7048,2699.2,2698.3,5.25]
[1739502660900,3.7048,2699.2,2698.1,3.72125]
[1739502660901,3.7048,2699.2,2699.0,0.23251016]
[1739502661111,3.70497,2699.1,2698.5,3.70574]
[1739502661443,6.86491447,2699.2,2698.6,0.23280408]
[1739502661564,4.50907,2698.9,2698.6,0.23280408]
[1739502661761,0.8038,2698.9,2698.6,0.23280408]
[1739502661982,3.96391447,2699.2,2698.6,3.70559]
[1739502662194,7.66871447,2699.2,2698.7,0.23280408]
[1739502663062,3.70493,2699.1,2698.7,0.23280408]
[1739502663476,3.70493,2699.1,2698.5,3.70572]
[1739502663713,3.70493,2699.1,2698.8,0.23280408]
[1739502663860,3.70493,2699.1,2698.9,0.23280408]
[1739502664066,3.96391447,2699.2,2698.9,0.23280408]
[1739502664421,5.32,2699.3,2699.0,0.23280408]
[1739502664589,5.32,2699.3,2699.1,3.70491]
[1739502664989,1.0461,2699.7,2699.1,4.54427141]
[1739502665173,1.0461,2699.7,2699.2,0.23280408]
[1739502665372,4.75021,2699.7,2699.2,0.23280408]
[1739502665590,4.75021,2699.7,2699.2,3.93759408]
[1739502665591,4.47821,2699.7,2699.2,3.93759408]
[1739502666587,4.47821,2699.7,2699.2,0.23280408]
[1739502666971,0.7741,2699.7,2699.2,0.23280408]
[1739502667173,0.7741,2699.7,2699.3,3.70465]
[1739502667671,3.70426,2699.6,2699.1,4.54420141]
[1739502667925,3.70426,2699.6,2699.4,0.23280408]
[1739502668088,0.7741,2699.7,2698.6,4.48092]
[1739502668089,3.70495,2699.1,2698.6,4.48092]
[1739502668269,0.8092,2699.2,2698.7,3.93827408]
[1739502668667,3.70496,2699.1,2698.7,0.23280408]
[1739502669117,3.70509,2699.0,2698.8,0.23343717]
[1739502669366,3.70509,2699.0,2698.3,3.7754]
[1739502669367,3.70521,2698.9,2698.3,0.7754]
[1739502669647,3.70585,2698.5,2698.1,0.7582]
[1739502669847,3.70585,2698.5,2698.4,0.23343717]
[1739502670158,8.2063,2698.7,2698.1,0.7582]
[1739502670367,4.50072,2698.7,2698.1,0.7582]
[1739502670515,4.50072,2698.7,2698.2,0.23381414]
[1739502670854,8.20631,2698.7,2698.2,0.23381414]
[1739502671050,4.50072,2698.7,2698.2,0.23381414]
[1739502671664,2.226,2698.6,2698.2,0.23381414]
[1739502671811,4.50072,2698.7,2698.2,0.23381414]
[1739502672362,7.90047447,2698.9,2698.2,8.53106275]
[1739502672659,7.90047447,2698.9,2698.2,4.82498275]
[1739502672660,11.60580447,2698.9,2698.2,4.82498275]
[1739502672899,3.70536,2698.8,2698.2,4.82498275]
[1739502673189,7.90047447,2698.9,2698.2,4.82498275]
[1739502673373,3.7055,2698.7,2698.2,0.23381414]
[1739502673545,3.70563,2698.6,2698.2,0.23381414]
[1739502673747,7.90049447,2698.9,2698.2,0.23381414]
[1739502674064,7.90049447,2698.9,2698.2,3.93987414]
[1739502674484,7.90049447,2698.9,2698.3,3.70597]
[1739502674988,7.90049447,2698.9,2698.4,3.93970414]
[1739502675282,7.13739447,2698.9,2698.4,3.93970414]
[1739502675483,5.592,2699.1,2698.6,4.48879]
[1739502675686,3.70509,2699.0,2698.6,0.7832]
[1739502675885,3.70509,2699.0,2698.7,0.23397251]
[1739502676041,9.02497,2699.1,2698.7,0.23397251]
[1739502676485,5.32,2699.1,2698.7,0.23397251]
[1739502676652,5.32,2699.1,2698.8,3.70524]
[1739502676854,5.32,2699.1,2698.9,3.7052]
[1739502677195,5.592,2699.4,2699.0,0.2339348]
[1739502677659,3.7048,2699.2,2699.0,0.2339348]
[1739502677866,3.7048,2699.2,2698.7,3.7054]
[1739502678179,3.7048,2699.2,2698.7,4.524814]
[1739502678340,3.7048,2699.2,2698.8,0.23379152]
[1739502678543,9.29661,2699.4,2698.8,3.70533]
[1739502678754,9.29661,2699.4,2698.9,0.23379152]
[1739502679140,5.592,2699.4,2698.9,0.23379152]
[1739502679342,5.592,2699.4,2699.1,0.7791]
[1739502679538,9.29654,2699.4,2699.1,0.7791]
[1739502679768,9.29654,2699.4,2699.2,0.23379152]
[1739502679956,3.70466,2699.3,2698.8,0.7791]
[1739502680171,3.70466,2699.3,2698.9,0.23379152]
[1739502680362,9.29652,2699.4,2698.9,0.23379152]
[1739502680685,3.70469,2699.3,2698.9,0.23379152]
[1739502681892,3.7048,2699.2,2698.9,0.23379152]
[1739502682090,3.70496,2699.1,2698.9,0.23379152]
[1739502682263,3.70507,2699.0,2698.9,0.23379152]
[1739502682465,3.70507,2699.0,2698.5,4.46065]
[1739502682773,12.72999,2699.1,2698.5,4.46065]
[1739502682974,12.72999,2699.1,2698.6,0.23370105]
[1739502683181,9.02496,2699.1,2698.6,0.23370105]
[1739502684122,3.16011447,2698.9,2698.3,0.7549]
[1739502684321,4.52155,2698.8,2698.1,4.46113]
[1739502684490,3.7056,2698.7,2698.1,4.46113]
[1739502684698,0.8162,2698.8,2698.3,3.70593]
[1739502685109,12.18539447,2698.9,2698.4,3.70589]
[1739502685340,5.32,2698.9,2698.4,7.64556398]
[1739502685638,7.4109,2698.8,2698.4,0.23378398]
[1739502685842,3.70543,2698.8,2698.4,0.23378398]
[1739502686143,3.16011447,2698.9,2698.5,0.23397251]
[1739502686640,6.86532447,2698.9,2698.5,0.23397251]
[1739502686942,8.91086266,2698.9,2698.5,0.23397251]
[1739502687122,8.91086266,2698.9,2698.2,3.70605]
[1739502687291,3.16011447,2698.9,2698.4,3.70581]
[1739502687730,3.16011447,2698.9,2698.2,3.70611]
[1739502687935,6.86534447,2698.9,2698.2,3.70605]
[1739502688092,3.16011447,2698.9,2698.4,3.70587]
[1739502688531,3.16011447,2698.9,2698.5,0.23396497]
[1739502690542,6.1362,2699.0,2698.6,4.51539]
[1739502690930,6.1362,2699.0,2698.7,0.23396497]
[1739502691297,8.75211447,2699.2,2698.7,0.70890047]
[1739502691623,9.29688,2699.2,2698.7,0.70890047]
[1739502692207,5.32,2699.2,2698.8,3.70532]
[1739502692411,5.32,2699.2,2698.7,0.70890047]
[1739502692618,5.32,2699.2,2699.0,3.70502]
[1739502692926,4.21361447,2699.5,2699.1,0.23388955]
[1739502692927,9.53361447,2699.5,2699.1,0.23388955]
[1739502693125,8.48011447,2699.5,2699.1,0.23388955]
[1739502693341,0.272,2699.6,2699.2,3.70478]
[1739502693510,0.272,2699.6,2699.3,3.93837646]
[1739502694144,7.64565447,2699.8,2699.3,3.93837646]
[1739502694343,3.43211447,2699.8,2699.3,4.70270711]
[1739502696439,12.03125,2700.0,2699.5,3.70438]
[1739502696647,6.1015,2700.0,2699.5,3.70438]
[1739502696830,6.1015,2700.0,2699.6,0.23339954]
[1739502698237,9.80522,2700.0,2699.6,0.23339954]
[1739502698402,3.70387,2699.9,2699.6,0.23339954]
[1739502698608,3.70387,2699.9,2699.3,3.70455]
[1739502698807,3.16011447,2699.8,2699.7,0.23324881]
[1739502699114,6.86411447,2699.8,2699.7,0.23324881]
[1739502699325,6.86411447,2699.8,2699.2,0.7963]
[1739502699531,6.86411447,2699.8,2699.3,0.23328649]
[1739502699728,3.16011447,2699.8,2699.3,3.70457]
[1739502699935,3.16011447,2699.8,2699.4,3.70444]
[1739502700115,3.16011447,2699.8,2699.5,0.23328649]
[1739502702045,6.1015,2700.0,2699.5,3.93765649]
[1739502702214,6.1015,2700.0,2699.6,3.70423]
[1739502702553,6.1015,2700.0,2699.6,0.23327141]
[1739502702750,3.70402,2699.8,2699.6,0.23327141]
[1739502702958,3.70402,2699.8,2699.3,3.70458]
[1739502703177,6.86413447,2699.8,2699.4,0.2333091]
[1739502703326,3.7042,2699.7,2699.4,0.2333091]
[1739502703526,0.7841,2699.7,2699.1,3.70486]
[1739502703726,3.70425,2699.6,2699.2,0.23267591]
[1739502704968,0.7841,2699.7,2699.2,0.23267591]
[1739502705266,4.48823,2699.7,2699.2,3.93746591]
[1739502706051,0.7841,2699.7,2699.3,3.70454]
[1739502706446,0.7841,2699.7,2699.2,3.70479]
[1739502706642,0.7841,2699.7,2699.4,0.23267591]
[1739502706845,0.7841,2699.7,2699.3,3.70457]
[1739502707051,5.32,2700.0,2699.5,3.93703591]
[1739502707366,0.272,2699.9,2699.6,0.23267591]
[1739502708154,3.704,2699.8,2699.6,0.23267591]
[1739502708349,0.272,2699.9,2699.2,1.244949]
[1739502708518,0.272,2699.9,2699.5,3.70433]
[1739502708938,0.272,2699.9,2699.6,0.23270606]
[1739502709666,5.32,2700.2,2699.9,3.70384]
[1739502709872,8.75211447,2700.4,2699.9,7.40759]
[1739502710163,8.75211447,2700.4,2700.0,0.23272866]
[1739502711181,8.48011447,2700.4,2700.0,0.23272866]
[1739502711384,3.70329,2700.3,2699.7,8.19975]
[1739502711586,3.70329,2700.3,2699.8,0.23272866]
[1739502711882,3.70329,2700.3,2699.7,5.315695]
[1739502712083,3.70329,2700.3,2699.9,0.23272866]
[1739502712389,3.70329,2700.3,2700.0,0.23272866]
[1739502712545,0.7986,2700.2,2700.0,0.23272866]
[1739502712749,6.86367447,2700.1,2699.5,3.70434]
[1739502712981,0.7986,2699.8,2699.6,0.2325026]
[1739502713283,7.66269447,2699.8,2699.3,3.70465]
[1739502713485,3.95871447,2699.8,2699.7,0.2325026]
[1739502713674,7.66271447,2699.8,2699.3,3.70458]
[1739502713850,7.66271447,2699.8,2699.7,0.2325026]
[1739502714251,7.66271447,2699.8,2699.2,3.70479]
[1739502714563,3.70438,2699.6,2699.3,1.0484866]
[1739502714747,3.70438,2699.6,2699.3,0.2325026]
[1739502714948,3.7042,2699.7,2699.1,4.45506]
[1739502715174,3.7042,2699.7,2699.2,0.23279652]
[1739502715952,3.70426,2699.6,2699.2,0.23279652]
[1739502716447,3.7042,2699.7,2699.2,0.23279652]
[1739502716448,6.86453447,2699.5,2699.2,0.23279652]
[1739502716653,3.70466,2699.3,2699.2,0.23279652]
[1739502716878,0.8053,2699.4,2699.2,0.23279652]
[1739502717102,3.70481,2699.2,2698.6,3.70558]
[1739502717403,3.16011447,2699.1,2698.6,3.70558]
[1739502717965,3.16011447,2699.1,2698.7,3.70544]
[1739502719726,3.16011447,2699.1,2698.5,0.7822]
[1739502719727,6.86516447,2699.1,2698.5,0.7822]
[1739502720006,6.86516447,2699.1,2698.2,0.72978939]
[1739502720007,0.7624,2699.0,2698.3,0.7979]
[1739502720159,0.7624,2699.0,2698.3,4.50388]
[1739502720357,3.70536,2698.8,2698.3,0.7979]
[1739502720599,3.70529,2698.9,2698.3,3.70597]
[1739502720800,6.0824,2699.0,2698.3,3.70595]
[1739502721101,6.0824,2699.0,2698.5,8.16705]
[1739502721275,6.0824,2699.0,2698.5,4.46137]
[1739502722096,6.0824,2699.0,2698.5,4.46135]
[1739502722309,6.0824,2699.0,2698.5,8.16701]
[1739502722659,6.0824,2699.0,2698.6,3.70554]
[1739502723100,6.0824,2699.0,2698.5,0.7557]
[1739502723297,6.0824,2699.0,2698.4,0.370595]
[1739502723501,6.0824,2699.0,2698.5,3.70568]
[1739502723701,6.0824,2699.0,2698.5,7.41136]
[1739502723901,6.0824,2699.0,2698.6,3.70562]
[1739502725606,6.0824,2699.0,2698.6,3.70554]
[1739502727763,5.32,2699.0,2698.6,7.41108]
[1739502727963,5.32,2699.0,2698.6,3.70554]
[1739502728169,9.02515,2699.0,2698.4,4.076415]
[1739502728474,3.70521,2698.9,2698.4,3.70582]
[1739502728668,9.02515,2699.0,2698.0,0.72459411]
[1739502728669,3.70548,2698.7,2698.1,3.70622]
[1739502728867,3.70548,2698.7,2698.0,0.7588]
[1739502728868,3.70581,2698.5,2698.0,4.46517]
[1739502729070,0.7536,2698.4,2698.0,3.70637]
[1739502729278,0.7536,2698.4,2698.0,3.70636]
[1739502729573,0.7536,2698.4,2698.1,0.2340102]
[1739502730008,2.04755745,2698.4,2697.9,3.70657]
[1739502730273,2.04755745,2698.4,2698.0,3.9405161]
[1739502730708,2.04755745,2698.4,2698.0,0.2341761]
[1739502730876,5.75346745,2698.4,2698.0,0.2341761]
[1739502731210,3.70617,2698.2,2698.1,0.2341761]
[1739502731381,7.65258447,2698.2,2697.5,0.2496]
[1739502731574,6.86680447,2697.9,2697.5,0.2496]
[1739502731777,6.86680447,2697.9,2697.6,0.23442501]
[1739502731778,3.70686,2697.7,2697.6,0.23442501]
[1739502732079,8.21897547,2697.7,2697.5,0.2496]
[1739502732297,3.70699,2697.6,2697.5,0.2496]
[1739502732496,4.47489,2697.6,2697.5,0.2496]
[1739502732903,13.75789,2697.6,2697.5,0.2496]
[1739502736401,19.07789,2697.6,2697.5,0.2496]
[1739502736618,5.32,2697.6,2697.5,0.2496]
[1739502738440,0.272,2697.9,2697.6,3.70688]
[1739502738575,5.32,2698.2,2697.8,3.70671]
[1739502738774,5.32,2698.2,2697.7,4.52254]
[1739502738974,5.32,2698.2,2698.0,3.70643]
[1739502739170,5.32,2698.2,2697.9,3.70645]
[1739502739397,5.32,2698.2,2698.1,3.70631]
[1739502739572,6.0758,2698.5,2698.1,3.70631]
[1739502739775,6.0758,2698.5,2698.2,3.70617]
[1739502739972,5.32,2698.7,2698.2,3.70611]
[1739502740210,5.32,2698.7,2698.3,4.076561]
[1739502740426,5.32,2698.7,2698.3,3.70595]
[1739502741902,5.32,2698.7,2698.2,4.46211]
[1739502742630,5.32,2698.7,2698.3,3.70602]
[1739502743018,5.32,2698.7,2698.4,3.70577]
[1739502744640,5.32,2698.7,2698.5,0.23566248]
[1739502745141,5.32,2698.7,2698.2,4.46211]
[1739502745311,0.272,2698.8,2698.2,8.985024]
[1739502745500,0.272,2698.8,2698.3,3.94167248]
[1739502746737,2.226,2698.7,2698.3,3.94167248]
[1739502746918,0.272,2698.8,2698.3,3.94167248]
[1739502748242,8.32,2699.1,2698.3,0.23566248]
[1739502748440,0.272,2699.0,2698.6,3.70559]
[1739502748739,5.592,2699.1,2698.6,4.446738]
[1739502749241,9.29695,2699.1,2698.7,0.23566248]
[1739502750544,5.592,2699.1,2698.7,0.23566248]
[1739502750701,5.592,2699.1,2698.7,3.94109248]
[1739502752049,6.1322,2699.4,2698.9,3.7052]